Cogmind - Beta 13 @@@ ROGUE MODE // 2024.04.11 @ 11:16:22 Player: Zaros426 Result: Destroyed by VF-K1X(R) with Subdweller Laser Performance ------------- Evolutions (0) 0 Regions Visited (3) 600 Robots Destroyed (30) 150 Value Destroyed (609) 609 Prototype IDs (3) 60 Alien Tech Used (0) 0 Bonus (4) 4 TOTAL SCORE: 1423 Bonus ------- High Alert Combat Kills 27 Follower Combat Kills 21 Friendly Fire -44 Cogmind --------- Core Integrity 0/250 Matter 260/300 Energy 99/100 System Corruption 0% Temperature Cool (6) Movement Core (50) Location -10/Subcaves Parts ------- > --- POWER (1) -------- (None) > --- PROPULSION (2) --- (None) > --- UTILITY (2) ------ Makeshift Terrain Scan Processor > --- WEAPON (2) ------- Flail > --- INVENTORY (5) ---- Light Nuclear Core Medium Storage Unit Bore Cannon Peak State ------------ > --- POWER ------------ Light Angular Momentum Engine > --- PROPULSION ------- Wheel Wheel > --- UTILITY ---------- Improved Terrain Scanner Makeshift Terrain Scan Processor > --- WEAPON ----------- Bore Cannon Flail > --- INVENTORY -------- Light Nuclear Core Small Storage Unit Medium Storage Unit Large Battery High-capacity Matter Pod [Rating: 21] Favorites ----------- Power Light Nuclear Core Engine Light Angular Momentum Engine Power Core Light Nuclear Core Propulsion Wheel Wheel Wheel Utility Improved Terrain Scanner Device Improved Terrain Scanner Storage Small Storage Unit Processor Makeshift Terrain Scan Processor Protection Light Armor Plating Weapon Flail Ballistic Gun Assault Rifle Ballistic Cannon Bore Cannon Launcher Grenade Launcher Impact Weapon Flail Build | -11 -10 -10 -10 ------- Run | Yrd Mat Min Sub Slots Evolved . | . . . . Power . | . . . . Propulsion . | . . . . Utility . | . . . . Weapon . | . . . . Parts Attached 28 | 7 7 10 4 Power 4 | 1 1 2 . Engine 2 | 1 . 1 . Core 2 | . 1 1 . Reactor . | . . . . Propulsion 8 | 2 2 3 1 Treads . | . . . . Leg . | . . . . Wheel 8 | 2 2 3 1 Hover . | . . . . Flight . | . . . . Utility 7 | 2 1 3 1 Device 2 | 1 . 1 . Storage 2 | 1 . 1 . Processor 2 | . 1 . 1 Hackware . | . . . . Protection 1 | . . 1 . Artifact . | . . . . Weapon 9 | 2 3 2 2 Energy Gun . | . . . . Energy Cannon . | . . . . Ballistic Gun 3 | 2 1 . . Ballistic Cannon 1 | . . 1 . Launcher 2 | . . 1 1 Special Weapon . | . . . . Impact Weapon 3 | . 2 . 1 Slashing Weapon . | . . . . Piercing Weapon . | . . . . Special Melee Weapon . | . . . . Unidentified Prototypes . | . . . . Parts Lost 11 | . . 5 6 Power 2 | . . 1 1 Propulsion 5 | . . 2 3 Utility 2 | . . 1 1 Weapon 2 | . . 1 1 Highest Loss Streak 5 | . . 3 5 To Critical Strikes . | . . . . Average Slot Usage (%) 95 | . 100 98 76 Engine 6 | . 7 3 13 Core 7 | . 6 10 . Wheel 27 | . 28 27 26 Device 11 | . 13 12 6 Storage 11 | . 14 14 . Processor 2 | . . . 14 Ballistic Cannon 5 | . . 9 . Launcher 1 | . . 3 . Impact Weapon 17 | . 24 14 14 Naked Turns . | . . . . Heaviest Build 31 | 15 15 31 21 Greatest Support 20 | 20 20 20 20 Greatest Overweight (x) 1 | 1 . 1 1 Average Overweight (x) . | . . . . Largest Inventory Capacity 10 | 8 8 10 10 Average Capacity 8 | 7 8 9 5 Most Carried 10 | 6 8 10 9 Average Carried 7 | 1 7 8 4 Final Capacity 10 | 8 8 10 5 Final Carried 10 | 5 8 10 3 Class Distribution -------------------- 70% | Scavenger-Mutant 29% | Mutant Dominant Class ---------------- Mutant | -10/Materials Scavenger-Mutant | -10/Mines Scavenger-Mutant | -10/Subcaves Resources | -11 -10 -10 -10 ----------- Run | Yrd Mat Min Sub Matter Collected 593 | 305 75 213 . Remotely . | . . . . Salvage Created 832 | 129 446 221 36 Parts 36 | 13 10 11 2 Haulers Intercepted 1 | . 1 . . Recyclers Shooed 1 | . . 1 . Parts Field Recycled . | . . . . Retrieved Matter . | . . . . Parts Self-Destructed 3 | . . . 3 Prevented . | . . . . Kills | -11 -10 -10 -10 ------- Run | Yrd Mat Min Sub Combat Hostiles Destroyed 12 | . 9 2 1 Melee 5 | . 4 1 . AOE 2 | . . 1 1 Classes Destroyed 10 | 3 4 2 1 Worker 7 | 2 3 2 . Builder 1 | . 1 . . Tunneler 5 | 2 . 3 . Hauler 1 | . 1 . . Recycler 2 | 1 . 1 . Watcher 1 | . 1 . . Swarmer 1 | . . 1 . Grunt 10 | . 9 1 . Subdweller 1 | . . . 1 Zionite 1 | . . 1 . Best Kill Streak 5 | 3 5 2 1 Combat Bots Only 4 | . 4 1 1 Max Kills in Single Turn 2 | 1 2 2 1 Gunslinging . | . . . . Exploded 1 | . . 1 1 Melee 1 | . 1 1 . Uniques/NPCs Destroyed . | . . . . Combat | -11 -10 -10 -10 -------- Run | Yrd Mat Min Sub Hostile Shots Fired 77 | . 33 26 18 Missed 18 | . 9 5 4 Damage Taken 983 | . 386 311 286 Core 258 | . 75 81 102 Absorbed by Shields . | . . . . Core Remaining (%) 100 | 100 . . . Volleys Fired 28 | 10 . 15 3 Largest 2 | 2 . 1 1 Hottest 57 | 40 . 57 30 Shots Fired 38 | 20 . 15 3 Gun 20 | 20 . . . Cannon 14 | . . 14 . Launcher 4 | . . 1 3 Special . | . . . . Kinetic 34 | 20 . 14 . Thermal . | . . . . Explosive 4 | . . 1 3 Electromagnetic . | . . . . Robot Hit Streak 10 | 10 . 7 3 Robot Miss Streak 4 | 1 . 4 . Penetration Max . | . . . . Secondary Targets . | . . . . Shots Hit Robots 64 | 16 31 15 2 Core Hits 24 | 6 5 8 5 Critical Kills . | . . . . Critical Parts Destroyed 14 | . 10 4 . Critical Strikes 14 | . 10 4 . Destroy 2 | . . 2 . Smash 12 | . 10 2 . Melee Attacks 86 | . 55 21 10 Impact 86 | . 55 21 10 Slashing . | . . . . Piercing . | . . . . Sneak Attacks 7 | . 4 3 . Combat Hostiles . | . . . . Follow-up Attacks 9 | . 9 . . Damage Inflicted 2817 | 212 1633 705 267 Guns 212 | 212 . . . Cannons 94 | . . 94 . Explosions 701 | . 320 114 267 Melee 1810 | . 1313 497 . Ramming . | . . . . Kinetic 306 | 212 . 94 . Thermal 34 | . . 34 . Explosive 667 | . 320 80 267 Electromagnetic . | . . . . Impact 1810 | . 1313 497 . Slashing . | . . . . Piercing . | . . . . Highest Corruption . | . . . . Average Corruption . | . . . . Corruption Purged . | . . . . Corruption Blocked . | . . . . Overload Shots . | . . . . Overflow Damage 818 | . 569 249 . Projectiles . | . . . . Explosions 124 | . 89 35 . Melee 694 | . 480 214 . Knockbacks 9 | . 4 5 . Impact 7 | . 4 3 . Kinetic 1 | . . 1 . Secondary 1 | . . 1 . Self-Inflicted Damage 140 | . 100 40 . Shots 2 | . 1 1 . Rammed . | . . . . Targets Rammed . | . . . . Kicked . | . . . . Crushed . | . . . . Highest Temperature 64 | . . 64 . Average Temperature 24 | . . 24 . Received Heat Transfer 360 | . 156 138 66 Siege Activations . | . . . . Robots Corrupted . | . . . . Combat Hostiles . | . . . . Parts Fried 20 | . 13 7 . Impact Corruptions 24 | . 16 8 . Robots Melted . | . . . . Combat Hostiles . | . . . . Parts Melted . | . . . . Heat Transferred 50 | . . 50 . Parts Sabotaged . | . . . . Parts Stolen . | . . . . Parts Stripped . | . . . . Power Chain Reactions . | . . . . Alert | -11 -10 -10 -10 ------- Run | Yrd Mat Min Sub Peak Influence 609 | 25 609 263 . Initial 167 | . 16 167 . Average 153 | 5 240 125 . Maximum Alert Level 2 | . 2 1 . Low Security (%) 81 | 100 52 94 . Level 1 5 | . 7 5 . Level 2 12 | . 40 . . Level 3 . | . . . . Level 4 . | . . . . Level 5 . | . . . . High Security . | . . . . Max Security . | . . . . Squads Dispatched 2 | . 2 . . Investigation 1 | . 1 . . Extermination . | . . . . Reinforcement 1 | . 1 . . Assault . | . . . . Garrison . | . . . . Intercept . | . . . . Searches Triggered . | . . . . Construction Impeded . | . . . . Haulers Reinforced . | . . . . Active Scanning Responses . | . . . . Cargo Convoy Interrupts . | . . . . Stealth | -11 -10 -10 -10 --------- Run | Yrd Mat Min Sub Distress Signals 2 | . 2 . . Communications Jammed . | . . . . Distress Signals . | . . . . Times Spotted 30 | . 17 8 5 Peak Tracking Total 3 | . 3 3 3 Tactical Retreats 3 | . 1 1 1 Traps | -11 -10 -10 -10 ------- Run | Yrd Mat Min Sub Traps Triggered . | . . . . Indirectly . | . . . . Trap Hack Attempts . | . . . . Triggered . | . . . . Disarmed . | . . . . Reprogrammed . | . . . . Reused . | . . . . Traps Extracted . | . . . . Installed . | . . . . Triggered 2 | . 2 . . Machines | -11 -10 -10 -10 ---------- Run | Yrd Mat Min Sub Machines Disabled 9 | . 2 7 . Max in Single Turn 5 | . 1 5 . Machines Repaired . | . . . . Machines Dismantled . | . . . . Machines Sabotaged . | . . . . Overloaded Fab Kills . | . . . . Hacking | -11 -10 -10 -10 --------- Run | Yrd Mat Min Sub Machines Accessed 7 | . 7 . . Terminals 6 | . 6 . . Fabricators . | . . . . Repair Stations . | . . . . Recycling Units 1 | . 1 . . Scanalyzers . | . . . . Garrison Access . | . . . . Total Hacks 14 | . 14 . . Successful 9 | . 9 . . Failed 5 | . 5 . . Catastrophic . | . . . . Database Lockouts . | . . . . Manual . | . . . . Terminals 12 | . 12 . . Fabricators . | . . . . Repair Stations . | . . . . Recycling Units 2 | . 2 . . Scanalyzers . | . . . . Garrison Access . | . . . . Terminal Hacks 8 | . 8 . . Robot Analysis 1 | . 1 . . Prototype ID Bank 1 | . 1 . . Alert Level 1 | . 1 . . Locate Traps 3 | . 3 . . Dispatch Records 1 | . 1 . . Zone Layout 1 | . 1 . . Fabricator Hacks . | . . . . Repair Station Hacks . | . . . . Recycling Unit Hacks 1 | . 1 . . Report Inventory 1 | . 1 . . Scanalyzer . | . . . . Garrison Access Hacks . | . . . . Unauthorized Hacks . | . . . . Terminals . | . . . . Fabricators . | . . . . Repair Stations . | . . . . Recycling Units . | . . . . Scanalyzers . | . . . . Garrison Access . | . . . . Data Cores Recovered . | . . . . Used . | . . . . Hacking Detections 4 | . 4 . . Full Trace Events . | . . . . Feedback Events . | . . . . Feedback Blocked . | . . . . Robot Schematics Acquired . | . . . . Robots Built . | . . . . Authchips . | . . . . Time . | . . . . Total Robot Build Rating . | . . . . Part Schematics Acquired . | . . . . Parts Built . | . . . . Authchips . | . . . . Time . | . . . . Total Part Build Rating . | . . . . Parts Repaired . | . . . . Time . | . . . . Parts Recycled . | . . . . Recycled Matter . | . . . . Retrieved Matter . | . . . . Retrieved Components . | . . . . Parts Scanalyzed . | . . . . Part Schematics Acquired . | . . . . Parts Damaged . | . . . . Bothacking | -11 -10 -10 -10 ------------ Run | Yrd Mat Min Sub Used RIF Installer . | . . . . Robots Hacked . | . . . . Non-combat . | . . . . Combat . | . . . . Robot Hacks Applied . | . . . . Relay Couplers Released . | . . . . Fabnet Peak Effective % . | . . . . Robots Rewired . | . . . . Allies Hacked . | . . . . Hacks Repelled . | . . . . Allies | -11 -10 -10 -10 -------- Run | Yrd Mat Min Sub Total Allies 2 | . . 2 . Largest Group 2 | . . 2 . Highest-Rated Group 39 | . . 39 . Highest-Rated Ally 31 | . . 31 . Total Orders . | . . . . Ally Attacks 8 | . . 8 . Total Damage 107 | . . 107 . Kills 3 | . . 3 . Allies Corrupted . | . . . . Allies Melted . | . . . . Intel | -11 -10 -10 -10 ------- Run | Yrd Mat Min Sub Robot Analysis Total 1 | . 1 . . Derelict Logs Recovered 3 | . . 2 1 Drone Launches . | . . . . Drone Recoveries . | . . . . Exploration | -11 -10 -10 -10 ------------- Run | Yrd Mat Min Sub Turns Passed 1896 | 112 509 981 294 Spaces Moved 1445 | 65 388 677 315 Core 15 | 2 . . 13 Treads . | . . . . Legs . | . . . . Wheels 1430 | 63 388 677 302 Hover . | . . . . Flight . | . . . . Fastest Speed 50 | 50 80 80 50 Average Speed 84 | 86 80 89 79 Slowest Speed 100 | 95 80 95 100 Overloaded Moves . | . . . . Propulsion Burnouts . | . . . . Robots Hopped . | . . . . Cave-ins Triggered . | . . . . Exploration Rate (%) 46 | 4 68 98 15 Regions Visited 3 Branch Regions 2 Pre-discovered Areas 3 | . . 2 1 Known Exits Taken 1 | . 1 . . Unknown Exits Taken 2 | 1 . 1 . Scrap Searched 1 | . . 1 . Spaces Dug 9 | . 1 3 5 Terrain Destroyed 108 | . 41 55 12 Melee 5 | . 1 3 1 Projectile 4 | . . 4 . AOE 99 | . 40 48 11 Terrain Rammed . | . . . . Walls Destroyed . | . . . . Machines Disabled . | . . . . Actions | -11 -10 -10 -10 --------- Run | Yrd Mat Min Sub Total 1967 | 97 518 1007 345 Wait 344 | 9 62 273 . Move 1442 | 64 387 676 315 Hop . | . . . . Pick Up 28 | 6 10 9 3 Fast Attach 9 | 7 1 1 . Attach 7 | . . 5 2 Detach 1 | . . . 1 Swap 12 | . 6 4 2 Drop 21 | 1 8 3 9 Fire 28 | 10 . 15 3 Melee 75 | . 44 21 10 Ram . | . . . . Kick . | . . . . Crush . | . . . . Escape Stasis . | . . . . Rewire . | . . . . Trap . | . . . . Miscellaneous . | . . . . Route ------- -11/Scrapyard -10/Materials (discovered 2 exits: [*Mat] / *Min) -10/Mines (discovered 3 exits: [*Mat x2] / [*Sub]) -10/Subcaves History --------- Turn | Location | Event 14 | -11/Scrapyard | Discovered new exit (range 16) 113 | -11/Scrapyard | Entered Materials 205 | -10/Materials | Discovered new exit (range 10) 280 | -10/Materials | Discovered new exit (range 16) 309 | -10/Materials | Build established: Mutant 622 | -10/Materials | Identified exit to Mines 622 | -10/Materials | Entered Mines 698 | -10/Mines | Core integrity fell below 50% 730 | -10/Mines | Lost 3 parts (1n1u1w) 743 | -10/Mines | Learned location of Mines (-8) 748 | -10/Mines | Learned Materials garrison access intel 954 | -10/Mines | A weapon hastily lodged in a ceiling crevice suddenly fell to the ground 1016 | -10/Mines | Build established: Scavenger-Mutant 1122 | -10/Mines | Learned location of Storage (-9) 1254 | -10/Mines | Discovered new exit (range 7) 1350 | -10/Mines | Discovered new exit (range 7) 1592 | -10/Mines | Discovered new exit (range 12) 1603 | -10/Mines | Entered Subcaves 1641 | -10/Subcaves | A swath of the cavern ceiling suddenly collapsed 1836 | -10/Subcaves | Disturbed a concealed Subdweller 1861 | -10/Subcaves | Core integrity fell below 20% 1891 | -10/Subcaves | Ambushed by Subdweller buried in earth 1897 | -10/Subcaves | Destroyed by VF-K1X(R) with Subdweller Laser Last Messages --------------- 01612_ Dropped Sml. Storage Unit. 01615_ Acquired Assault Rifle. 01616_ Dropped Assault Rifle. 01618_ Subatomizers dissect the Wheel. 01638_ Q8-CL5(u) builds Twisted Machinery. A swath of the cavern ceiling suddenly collapses. 01643_ Q8-CL5(u) builds Twisted Machinery. 01718_ Acquired derelict log, extracted data. World map confirmed: -9/Storage. 01743_ Imp. Terrain Scanner destroyed. 01836_ FT-C4Q(R) angrily emerges from the Twisted Machinery. 01842_ Wheel destroyed. 01852_ Q8-CL5(u) builds Twisted Machinery. 01864_ Wheel destroyed. 01875_ Lgt. Angular Momentum Engine destroyed. 01889_ W1-OJM(R) destroyed. 01890_ Wheel destroyed. 01892_ VF-K1X(R): "ARGHSUB!" 01894_ Grenade Launcher destroyed. 01894_ 36-5AF(R) affixes Scrap Shield Fragment to Scrap Shield. Map ----- +----------------------------------------------------+ | ?#?####? ####??## #???????????????????????? | | #????#######??#?# ## ####???##?????#???????????? | | ???????#?####???# # ##??##???????????????????? | | #?#?###?#?##??### # ##???#??#?#??????????????? | | #???##?###?#??# # #???#?#????#?????????????? | | # #????##??#???## ## ##?????##????????????????? | | ?# #??######?#?# """## ###?????#??#????????????? | | #? #??###?######""#### ##?##????#?????????????? | | ##?# #####?#?#??#"""### ""##????????????????????? | | ## ?? ??####?#??# "#### ##"###???????????????????? | | ####? #??###?#?## # "#"##?#??????????????????? | | #?## ########?## """ #"##"#????????????????????? | | ####??#?# ##### "" ##"#""#### ?"#????????????? | | ## ?## "" # #"""""""##""#?????????????? | | # #### ### """ "#""#""""#?"?????????????? | | # #??#%#### "" # # #"##" ####"#?????????????? | | ## # ####### ##### "#" ###;??????????????? | | ### ######### """ #??####" ;#??????????????? | | # ####?#?### " ##??### ###?????????????? | | ## ##??????#### " ##????# ;??????????????? | | ?## ##?#?#??### "###????#" & #???????????????? | | ??## ####?###?#"" ######?#"" RR& ##??????????????? | | ???## ########## #?##"###" & #??????????????? | | ?##?##"## # ### ## #????????????????? | | ?#???# # #### ### R #????????????????? | | #?#?#### ###@ " ##???????????????? | | ############ ##;# " ""#???????????????? | | ?#??##?##?### # ##"""""""#??????????????? | | ??##???#????# ####& ###"" """#?????????????? | | #???#???#??###### ##""&# #?########??????????????? | | ##?#??##?##?????# #"$$<# #???????????????????????? | | ????????????????# #"$""# #???????????????????????? | | ??##????????#?#?# ##<<## #???????????????????????? | | ??##????##??#??## #### #???????????????????????? | | ????????#???#??### #???????????????????????? | | ??#??#???????????#########???????????????????????? | | ??????#?#???#?#??????????????????????????????????? | | ????????????#?#??#?#?????????????????????????????? | | ??#?#??#?????????????????????????????????????????? | | ????????#????#???????????????????????????????????? | | ?????????????#???????????????????????????????????? | | ?????????????????????????????????????????????????? | | ?????????????????????????????????????????????????? | | ?????????????????????????????????????????????????? | | | | | | | | | | | | | +----------------------------------------------------+ Best States ------------- Heat Dissipation 25 Energy Generation 18 Energy Capacity 250 Matter Stores 300 Matter Capacity 300 Sight Range 16 Terrain Scan Range 16 Terrain Scan Density 135 Armor Coverage 150 Evasion (%) 50 Item Schematics ----------------- None Robot Schematics ------------------ None Fabricated ------------ Nothing Alien Tech Used ----------------- None Achievements -------------- Batter Up Challenges ------------ None Game ------ Seed ShadeThermalFalx Manual? 0 Play Time 00:22:26 Cumulative 34.1 hours Start 2024.04.11 @ 10:54:20 End 2024.04.11 @ 11:16:22 Sessions 1 Manual Loads 0 Difficulty Rogue Special Mode None Game No. 38 Rogue 38 Adventurer 0 Explorer 0 Win Type - Total 0 Types 0/0/0/0/0/0/0/0/0 Lore% 24 Gallery% 32 Achievement% 24 Wizard Run 0 Options --------- Layout 0 ASCII 0 Keyboard 0 Movement Mouse Keybinds 0 Fullscreen 1 Font 24/Smallcaps Map View 183x50 Zoom Use 0% Tactical HUD 1 Map Filters NONE Filters NONE Steam 0 RUN: 39a4c3e7-91a3-4ffd-a898-11a30fad1b3a